Cogmind - Beta 15 @@@ ROGUE MODE // 2025.05.30 @ 18:54:48 Player: Elias Result: Destroyed by H-55 Commando with Assault Rifle Performance ------------- Evolutions (2) 1000 Regions Visited (7) 1400 Robots Destroyed (65) 325 Value Destroyed (1912) 1912 Prototype IDs (24) 480 Alien Tech Used (0) 0 Bonus (555) 555 TOTAL SCORE: 5672 Bonus ------- High Alert Combat Kills 55 Entered Garrisons 200 Aligned with FarCom 300 Cogmind --------- Core Integrity 0/550 Matter 300/300 Energy 160/160 System Corruption 1% Temperature Cool (0) Movement Walking (185) Ox1 Location -8/Garrison Parts ------- > --- POWER (1) -------- Light Nuclear Core > --- PROPULSION (3) --- Carbon-fiber Leg VSS Leg > --- UTILITY (5) ------ Scrap Suit Improved Heat Sink Large Storage Unit Hacking Suite > --- WEAPON (2) ------- Field Laser > --- INVENTORY (15) --- Light Nuclear Core Medium Storage Unit Terrain Scan Processor Light Armor Plating Relay Coupler [NC] (24) Relay Coupler [Brawler] (22) Beam Rifle AWS/Gauss Rocket Launcher Improved Datajack Heavy Hammer Peak State ------------ > --- POWER ------------ Light Nuclear Core > --- PROPULSION ------- Aluminum Leg Aluminum Leg VSS Leg > --- UTILITY ---------- Scrap Suit Improved Heat Sink Medium Storage Unit Hacking Suite > --- WEAPON ----------- AWS/Gauss > --- INVENTORY -------- Light Nuclear Core Large Storage Unit Terrain Scan Processor Shock Rifle Beam Rifle Autogun Rocket Launcher Improved Datajack Heavy Hammer [Rating: 41] Favorites ----------- Power Improved Ion Engine Engine Improved Ion Engine Power Core Light Nuclear Core Propulsion Aluminum Leg Treads Light Treads Leg Aluminum Leg Utility Hardened Light Armor Plating Device Seismic Detector Storage Small Storage Unit Hackware Hacking Suite Protection Hardened Light Armor Plating Weapon Autogun Energy Gun Small Laser Energy Cannon Beam Cannon Ballistic Gun Autogun Impact Weapon Heavy Hammer Slashing Weapon Katana Special Melee Weapon Datajack Build | -11 -10 -9 -9 -9 -8 -8 -8 ------- Run | Yrd Mat Mat Min Exi Min Mat Gar Slots Evolved 4 | . . 2 . . . 2 . Power . | . . . . . . . . Propulsion 1 | . . . . . . 1 . Utility 3 | . . 2 . . . 1 . Weapon . | . . . . . . . . Parts Attached 42 | 8 3 12 2 1 . 10 6 Power 8 | 1 1 3 . . . 2 1 Engine 5 | 1 1 3 . . . . . Core 3 | . . . . . . 2 1 Reactor . | . . . . . . . . Propulsion 11 | 3 . 2 2 . . 3 1 Treads 1 | 1 . . . . . . . Leg 10 | 2 . 2 2 . . 3 1 Wheel . | . . . . . . . . Hover . | . . . . . . . . Flight . | . . . . . . . . Utility 9 | 2 . 3 . 1 . 2 1 Device 3 | 1 . . . . . 2 . Storage 3 | 1 . . . 1 . . 1 Processor . | . . . . . . . . Hackware 1 | . . 1 . . . . . Protection 2 | . . 2 . . . . . Artifact . | . . . . . . . . Weapon 14 | 2 2 4 . . . 3 3 Energy Gun 6 | 2 . 1 . . . 1 2 Energy Cannon 2 | . 1 1 . . . . . Ballistic Gun 4 | . . 2 . . . 2 . Ballistic Cannon . | . . . . . . . . Launcher . | . . . . . . . . Special Weapon . | . . . . . . . . Impact Weapon 1 | . . . . . . . 1 Slashing Weapon . | . . . . . . . . Piercing Weapon . | . . . . . . . . Special Melee Weapon 1 | . 1 . . . . . . Unidentified Prototypes 1 | . . 1 . . . . . Parts Lost 8 | . . 1 . . . 3 4 Power 1 | . . 1 . . . . . Propulsion 4 | . . . . . . 2 2 Utility . | . . . . . . . . Weapon 3 | . . . . . . 1 2 Highest Loss Streak 3 | . . 1 . . . 1 3 To Critical Strikes . | . . . . . . . . Average Backups 7 | 4 7 7 8 7 8 7 10 Power . | . . . . . . . 1 Propulsion . | 1 2 2 2 . . . . Utility 2 | . 1 2 3 3 4 2 3 Weapon 2 | 1 3 2 2 2 3 3 4 Tool/Special . | . . . . . . . . Unused Backups 12 | . . 3 1 1 . . 7 Power 1 | . . . . . . . 1 Propulsion 1 | . . . . 1 . . . Utility 3 | . . . . . . . 3 Weapon 6 | . . 3 1 . . . 2 Tool/Special 1 | . . . . . . . 1 Average Slot Usage (%) 93 | . 100 98 100 100 100 72 83 Engine 8 | . 14 10 11 11 11 . . Core 2 | . . . . . . 8 9 Leg 21 | . 28 22 22 22 22 12 26 Device 9 | . 14 11 11 11 1 12 18 Storage 10 | . 14 11 11 11 11 9 9 Hackware 9 | . . 11 11 11 11 9 9 Protection 10 | . . 10 11 11 20 6 . Energy Gun 4 | . 20 5 . . . 2 6 Energy Cannon 1 | . 5 5 . . . . . Ballistic Gun 14 | . . 11 22 22 22 11 5 Peak Build Rating 41 | 7 8 16 20 22 23 41 41 Average Rating 21 | 5 7 14 17 21 22 31 37 On Entrance 17 | . 7 8 16 20 22 23 41 Naked Turns . | . . . . . . . . Heaviest Build 40 | 12 13 24 24 29 33 33 40 Greatest Support 37 | 20 20 20 30 30 30 32 37 Greatest Overweight (x) 9 | . . 1 1 . 1 9 1 Average Overweight (x) . | . . . . . . 1 . Largest Inventory Capacity 15 | 8 8 8 8 10 10 10 15 Average Capacity 9 | 7 8 8 8 8 10 10 13 Most Carried 14 | 6 8 8 8 9 10 10 14 Average Carried 8 | 4 7 7 8 8 9 8 11 Final Capacity 15 | 8 8 8 8 10 10 10 15 Final Carried 12 | 5 8 8 8 9 10 10 12 Class Distribution -------------------- 70% | Scavenger-Mutant 29% | Mutant Dominant Class ---------------- Mutant | -10/Materials Scavenger-Mutant | -9/Materials Scavenger-Mutant | -9/Mines Scavenger-Mutant | -9/Exiles Scavenger-Mutant | -8/Mines Mutant | -8/Materials Scavenger-Mutant | -8/Garrison Resources | -11 -10 -9 -9 -9 -8 -8 -8 ----------- Run | Yrd Mat Mat Min Exi Min Mat Gar Matter Collected 1334 | 280 50 215 162 . 108 419 100 Remotely . | . . . . . . . . Salvage Created 2249 | 204 219 533 . . 57 603 633 Parts 142 | 19 13 41 . . 6 31 32 Haulers Intercepted 2 | . . 2 . . . . . Recyclers Shooed 2 | 1 . . . . . 1 . Parts Field Recycled . | . . . . . . . . Retrieved Matter . | . . . . . . . . Parts Self-Destructed . | . . . . . . . . Prevented . | . . . . . . . . Kills | -11 -10 -9 -9 -9 -8 -8 -8 ------- Run | Yrd Mat Mat Min Exi Min Mat Gar Combat Hostiles Destroyed 50 | . 4 15 . . 4 12 15 Guns 47 | . 4 13 . . 4 12 14 Cannons 2 | . . 2 . . . . . AOE 1 | . . . . . . . 1 Classes Destroyed 12 | 3 3 3 . . . 1 2 Worker 4 | 2 . 2 . . . . . Tunneler 5 | 5 . . . . . . . Hauler 2 | . . 2 . . . . . Recycler 2 | 1 . 1 . . . . . Operator 1 | . 1 . . . . . . Watcher 1 | . 1 . . . . . . Swarmer 19 | . . 11 . . 4 . 4 Grunt 16 | . 4 2 . . . 5 5 Duelist 1 | . . . . . . . 1 Sentry 9 | . . 2 . . . 3 4 Specialist 4 | . . . . . . 4 . Hunter 1 | . . . . . . . 1 Best Kill Streak 8 | 7 3 8 . . 4 5 7 Combat Bots Only 7 | . 3 4 . . 4 5 7 Max Kills in Single Turn 2 | 1 1 2 . . 2 1 1 Gunslinging 1 | . . . . . 1 . . Exploded 1 | . . . . . . . 1 Melee . | . . . . . . . . Uniques/NPCs Destroyed . | . . . . . . . . Combat | -11 -10 -9 -9 -9 -8 -8 -8 -------- Run | Yrd Mat Mat Min Exi Min Mat Gar Hostile Shots Fired 328 | . 23 76 . . 27 117 85 Missed 78 | . 7 20 . . 3 33 15 Hits 250 | . 16 56 . . 24 84 70 Melee 1 | . . . . . . . 1 Projectile 249 | . 16 56 . . 24 84 69 Critical Strikes 6 | . 1 2 . . . 1 2 Damage Taken 3268 | . 202 565 . . 198 1341 962 Core 657 | . 57 42 . . 6 362 190 Absorbed by Shields 25 | . . . . . . . 25 Regen/Repaired (Parts) 96 | . . 2 . . . 11 83 Core Remaining (%) 88 | 100 77 . . . 88 . . Volleys Fired 157 | 17 24 53 1 . 9 31 22 Largest 2 | 2 2 2 2 . 2 2 2 Hottest 118 | 90 100 118 46 . 46 100 113 Shots Fired 378 | 34 48 106 2 . 18 80 90 Gun 353 | 34 43 86 2 . 18 80 90 Cannon 25 | . 5 20 . . . . . Launcher . | . . . . . . . . Special . | . . . . . . . . Kinetic 191 | . . 66 2 . 18 57 48 Thermal 167 | 34 48 40 . . . 23 22 Explosive . | . . . . . . . . Electromagnetic 20 | . . . . . . . 20 Robot Hit Streak 22 | 3 11 13 1 . 4 13 22 Robot Miss Streak 7 | 7 5 5 1 . 3 2 2 Penetration Max . | . . . . . . . . Secondary Targets 5 | . . 2 . . 1 1 1 Max Gunslinging Chain 1 | . . 1 . . 1 1 1 Autonomous 67 | . . . . . . 18 49 Shots Hit Robots 235 | 14 28 51 1 . 11 54 76 Core Hits 96 | 9 14 25 1 . 4 16 27 Critical Kills . | . . . . . . . . Critical Parts Destroyed . | . . . . . . . . Critical Strikes 3 | . 1 . . . . 2 . Burn 3 | . 1 . . . . 2 . Melee Attacks 6 | . 2 . . . . . 4 Impact 4 | . . . . . . . 4 Slashing . | . . . . . . . . Piercing . | . . . . . . . . Sneak Attacks 2 | . 2 . . . . . . Combat Hostiles . | . . . . . . . . Follow-up Attacks . | . . . . . . . . Damage Inflicted 4337 | 187 333 796 18 . 176 1133 1694 Guns 4066 | 187 281 634 18 . 167 1131 1648 Cannons 214 | . 52 162 . . . . . Explosions 46 | . . . . . . . 46 Melee . | . . . . . . . . Ramming 11 | . . . . . 9 2 . Kinetic 2667 | . . 557 18 . 167 837 1088 Thermal 1390 | 187 333 239 . . . 294 337 Explosive . | . . . . . . . . Electromagnetic 269 | . . . . . . . 269 Impact . | . . . . . . . . Slashing . | . . . . . . . . Piercing . | . . . . . . . . Highest Corruption 1 | . . . . . . . 1 Average Corruption 1 | . . . . . . . 1 Corruption Purged . | . . . . . . . . Corruption Blocked . | . . . . . . . . Effects 2 | . . . . . . . 2 Energy Discharges 1 | . . . . . . . 1 Parts Fused 1 | . . . . . . . 1 Overload Shots . | . . . . . . . . Overflow Damage 20 | . . . . . . . 20 Projectiles . | . . . . . . . . Explosions 20 | . . . . . . . 20 Melee . | . . . . . . . . Knockbacks . | . . . . . . . . Impact . | . . . . . . . . Kinetic . | . . . . . . . . Secondary . | . . . . . . . . Self-Inflicted Damage 38 | . . . . . . . 38 Shots 1 | . . . . . . . 1 Rammed . | . . . . . . . . Targets Rammed 2 | . . . . . 1 1 . Kicked 2 | . . . . . 1 1 . Crushed . | . . . . . . . . Highest Temperature 661 | 156 228 347 12 . 138 661 97 Average Temperature 115 | 74 88 100 9 . 69 243 32 Received Heat Transfer 876 | . 132 141 . . . 252 351 Effects 25 | . 2 3 . . . 20 . Shutdowns 4 | . . . . . . 4 . Interference 11 | . 2 3 . . . 6 . Matter Decay 6 | . . . . . . 6 . Damage (minor) 1 | . . . . . . 1 . Damage (core) 3 | . . . . . . 3 . Siege Activations . | . . . . . . . . Martial Activations . | . . . . . . . . Shielding Activations . | . . . . . . . . Robots Disrupted . | . . . . . . . . Combat Hostiles . | . . . . . . . . Robots Corrupted . | . . . . . . . . Combat Hostiles . | . . . . . . . . Parts Fried . | . . . . . . . . Impact Corruptions . | . . . . . . . . Robots Melted . | . . . . . . . . Combat Hostiles . | . . . . . . . . Parts Melted 8 | 1 1 1 . . . 4 1 Heat Transferred 3044 | 472 905 508 . . . 666 493 Parts Sabotaged . | . . . . . . . . Parts Stolen . | . . . . . . . . Parts Stripped . | . . . . . . . . Power Chain Reactions 1 | . . . . . . . 1 Alert | -11 -10 -9 -9 -9 -8 -8 -8 ------- Run | Yrd Mat Mat Min Exi Min Mat Gar Maximum Alert Level 2 | . . . . . . . 2 Low Security (%) 87 | 100 100 100 100 . 100 100 8 Level 1 8 | . . . . . . . 62 Level 2 3 | . . . . . . . 28 Level 3 . | . . . . . . . . Level 4 . | . . . . . . . . Level 5 . | . . . . . . . . High Security . | . . . . . . . . Max Security . | . . . . . . . . Peak Influence 478 | 15 70 190 64 . 80 150 478 Initial 76 | . . . 64 . . . 76 Average 74 | 3 27 90 14 . 8 36 338 Influence Increases 1404 | 40 130 396 . . 90 316 432 Destroy 0b10 Robot/C 1000 | . 80 300 . . 80 240 300 Destroy 0b10 Robot/NC 75 | 40 10 25 . . . . . Destroy Leader 176 | . 22 54 . . 10 70 20 Successful Hack 18 | . 18 . . . . . . Anti-Garrison Action 100 | . . . . . . . 100 Destroy Structure 20 | . . 2 . . . 6 12 Lose Combat Pursuer 15 | . . 15 . . . . . Influence Decreases 936 | 40 130 230 166 . 90 198 82 Entered New Map 144 | . . . 102 . . . 42 Time Decay 712 | 40 130 220 64 . 90 168 . Lost Part 80 | . . 10 . . . 30 40 Squads Dispatched 5 | . . 1 . . . 4 . Investigation 1 | . . 1 . . . . . Extermination . | . . . . . . . . Reinforcement 4 | . . . . . . 4 . Assault . | . . . . . . . . Garrison . | . . . . . . . . Intercept . | . . . . . . . . Searches Triggered . | . . . . . . . . Construction Impeded . | . . . . . . . . Haulers Reinforced . | . . . . . . . . Active Scanning Responses . | . . . . . . . . Cargo Convoy Interrupts . | . . . . . . . . Stealth | -11 -10 -9 -9 -9 -8 -8 -8 --------- Run | Yrd Mat Mat Min Exi Min Mat Gar Distress Signals 3 | . . . . . . 3 . Communications Jammed . | . . . . . . . . Distress Signals . | . . . . . . . . Times Spotted 55 | . 7 17 . . 4 11 16 Peak Tracking Total 7 | . 3 4 . . 4 3 7 Tactical Retreats 1 | . . 1 . . . . . Traps | -11 -10 -9 -9 -9 -8 -8 -8 ------- Run | Yrd Mat Mat Min Exi Min Mat Gar Traps Triggered 1 | . . . . . . . 1 Indirectly . | . . . . . . . . Trap Hack Attempts 27 | . 27 . . . . . . Triggered . | . . . . . . . . Disarmed 1 | . 1 . . . . . . Reprogrammed 1 | . 1 . . . . . . Reused . | . . . . . . . . Traps Extracted . | . . . . . . . . Installed . | . . . . . . . . Triggered . | . . . . . . . . Machines | -11 -10 -9 -9 -9 -8 -8 -8 ---------- Run | Yrd Mat Mat Min Exi Min Mat Gar Machines Disabled 3 | . . . 1 . . . 2 Max in Single Turn 1 | . . . 1 . . . 1 Garrison Relay 1 | . . . . . . . 1 Machines Repaired . | . . . . . . . . Machines Dismantled . | . . . . . . . . Machines Sabotaged . | . . . . . . . . Overloaded Fab Kills . | . . . . . . . . Hacking | -11 -10 -9 -9 -9 -8 -8 -8 --------- Run | Yrd Mat Mat Min Exi Min Mat Gar Machines Accessed 16 | . 5 5 . 2 . 3 1 Terminals 8 | . 4 2 . . . 1 1 Fabricators . | . . . . . . . . Repair Stations 1 | . . 1 . . . . . Recycling Units 3 | . 1 1 . . . 1 . Scanalyzers 1 | . . 1 . . . . . Garrison Access 1 | . . . . . . 1 . Total Hacks 40 | . 10 12 . 11 . 5 2 Successful 28 | . 5 9 . 11 . 3 . Failed 12 | . 5 3 . . . 2 2 Catastrophic . | . . . . . . . . Database Lockouts . | . . . . . . . . Manual 1 | . . . . 1 . . . Terminals 19 | . 8 7 . . . 2 2 Fabricators . | . . . . . . . . Repair Stations 2 | . . 2 . . . . . Recycling Units 5 | . 2 1 . . . 2 . Scanalyzers 2 | . . 2 . . . . . Garrison Access 1 | . . . . . . 1 . Terminal Hacks 20 | . 4 4 . 11 . 1 . Record 14 | . 2 2 . 10 . . . Robot Analysis 1 | . 1 . . . . . . Emergency Access Points 1 | . . 1 . . . . . Alert Level 1 | . . . . . . 1 . Locate Traps 2 | . 1 1 . . . . . Proto ID Catalog 1 | . . . . 1 . . . Fabricator Hacks . | . . . . . . . . Repair Station Hacks 2 | . . 2 . . . . . Scan Component 1 | . . 1 . . . . . Repair 1 | . . 1 . . . . . Recycling Unit Hacks 3 | . 1 1 . . . 1 . Retrieve Components 3 | . 1 1 . . . 1 . Scanalyzer 2 | . . 2 . . . . . Insert Component 1 | . . 1 . . . . . Analyze 1 | . . 1 . . . . . Garrison Access Hacks 1 | . . . . . . 1 . Unlock Access 1 | . . . . . . 1 . Unauthorized Hacks . | . . . . . . . . Terminals . | . . . . . . . . Fabricators . | . . . . . . . . Repair Stations . | . . . . . . . . Recycling Units . | . . . . . . . . Scanalyzers . | . . . . . . . . Garrison Access . | . . . . . . . . Data Cores Recovered 1 | . 1 . . . . . . Used . | . . . . . . . . Hacking Detections 11 | . 4 4 . . . 2 1 Full Trace Events 2 | . . 1 . . . . 1 Feedback Events 1 | . . . . . . . 1 Corruption 1 | . . . . . . . 1 Feedback Blocked . | . . . . . . . . Robot Schematics Acquired . | . . . . . . . . Robots Built . | . . . . . . . . Authchips . | . . . . . . . . Time . | . . . . . . . . Total Robot Build Rating . | . . . . . . . . Part Schematics Acquired 1 | . . 1 . . . . . Parts Built . | . . . . . . . . Authchips . | . . . . . . . . Time . | . . . . . . . . Total Part Build Rating . | . . . . . . . . Parts Repaired 1 | . . 1 . . . . . Time 38 | . . 38 . . . . . Parts Recycled . | . . . . . . . . Recycled Matter . | . . . . . . . . Retrieved Matter . | . . . . . . . . Retrieved Components 9 | . 6 2 . . . 1 . Parts Scanalyzed 1 | . . 1 . . . . . Part Schematics Acquired 1 | . . 1 . . . . . Parts Damaged 1 | . . 1 . . . . . Bothacking | -11 -10 -9 -9 -9 -8 -8 -8 ------------ Run | Yrd Mat Mat Min Exi Min Mat Gar Used RIF Installer . | . . . . . . . . Robots Hacked 1 | . 1 . . . . . . Non-combat 1 | . 1 . . . . . . Combat . | . . . . . . . . Robot Hacks Applied 2 | . 2 . . . . . . parse_system 1 | . 1 . . . . . . find_recycling 1 | . 1 . . . . . . Relay Couplers Released 3 | . . . . . . . 3 Machine Destruction 3 | . . . . . . . 3 Fabnet Peak Effective % . | . . . . . . . . Robots Rewired . | . . . . . . . . Allies Hacked . | . . . . . . . . Hacks Repelled . | . . . . . . . . Allies | -11 -10 -9 -9 -9 -8 -8 -8 -------- Run | Yrd Mat Mat Min Exi Min Mat Gar Total Allies . | . . . . . . . . Largest Group . | . . . . . . . . Highest-Rated Group . | . . . . . . . . Highest-Rated Ally . | . . . . . . . . Total Orders . | . . . . . . . . Ally Attacks . | . . . . . . . . Total Damage . | . . . . . . . . Kills . | . . . . . . . . Allies Corrupted . | . . . . . . . . Allies Melted . | . . . . . . . . Intel | -11 -10 -9 -9 -9 -8 -8 -8 ------- Run | Yrd Mat Mat Min Exi Min Mat Gar Active Infowar (turns) 1689 | 17 311 583 333 361 84 . . Seismic 1689 | 17 311 583 333 361 84 . . Robot Analysis Total 1 | . 1 . . . . . . Derelict Logs Recovered . | . . . . . . . . Drone Launches . | . . . . . . . . Drone Recoveries . | . . . . . . . . Exploration | -11 -10 -9 -9 -9 -8 -8 -8 ------------- Run | Yrd Mat Mat Min Exi Min Mat Gar Turns Passed 3561 | 194 311 583 333 361 838 504 437 Spaces Moved 1847 | 117 163 246 199 298 453 167 204 Core 42 | 24 . . . . . 18 . Treads . | . . . . . . . . Legs 1805 | 93 163 246 199 298 453 149 204 Wheels . | . . . . . . . . Hover . | . . . . . . . . Flight . | . . . . . . . . Fastest Speed 50 | 50 120 120 120 120 120 110 110 Average Speed 152 | 105 120 155 163 120 179 205 139 Slowest Speed 500 | 120 120 190 190 120 190 500 190 Overloaded Moves . | . . . . . . . . Propulsion Burnouts . | . . . . . . . . Robots Hopped . | . . . . . . . . Potential Cave-ins . | . . . . . . . . Cave-ins Triggered . | . . . . . . . . Exploration Rate (%) 36 | 6 42 32 43 67 72 13 15 Regions Visited 7 Branch Regions 3 Pre-discovered Areas . | . . . . . . . . Known Exits Taken 1 | . . . . . . 1 . Unknown Exits Taken 6 | 1 1 1 1 1 1 . . Scrap Searched 1 | . . . . . 1 . . Spaces Dug . | . . . . . . . . Terrain Destroyed 22 | . . . . . . 10 12 Melee . | . . . . . . . . Projectile 17 | . . . . . . 10 7 AOE 5 | . . . . . . . 5 Terrain Rammed . | . . . . . . . . Walls Destroyed . | . . . . . . . . Machines Disabled . | . . . . . . . . Actions | -11 -10 -9 -9 -9 -8 -8 -8 --------- Run | Yrd Mat Mat Min Exi Min Mat Gar Total 2294 | 153 227 357 207 303 465 275 307 Wait 132 | . 2 27 . . . 49 54 Move 1841 | 116 162 245 198 297 452 167 204 Hop . | . . . . . . . . Pick Up 41 | 12 4 7 1 2 1 10 4 Fast Attach 3 | . . 3 . . . . . Attach 20 | 7 . 2 . . 1 5 5 Detach 3 | . . . . . . . 3 Swap 29 | 1 5 9 3 1 . 5 5 Drop 29 | . 1 11 4 3 1 7 2 Fire 157 | 17 24 53 1 . 9 31 22 Melee 6 | . 2 . . . . . 4 Ram . | . . . . . . . . Kick 2 | . . . . . 1 1 . Crush . | . . . . . . . . Escape Stasis 4 | . . . . . . . 4 Rewire . | . . . . . . . . Trap 27 | . 27 . . . . . . Miscellaneous . | . . . . . . . . Route ------- -11/Scrapyard -10/Materials (discovered 2 exits: *Mat / [*Min]) -9/Materials -9/Mines -9/Exiles -8/Mines -8/Materials -8/Garrison History --------- Turn | Location | Event 16 | -11/Scrapyard | Discovered new exit (range 14) 195 | -11/Scrapyard | Entered Materials 313 | -10/Materials | Build established: Mutant 428 | -10/Materials | Discovered new exit (range 15) 469 | -10/Materials | Discovered new exit (range 16) 506 | -10/Materials | Entered another Materials area 506 | -9/Materials | Evolved 2 slots: Utility x2 565 | -9/Materials | Repaired Imp. Heat Sink 889 | -9/Materials | Discovered new exit (range 12) 1063 | -9/Materials | Build established: Scavenger-Mutant 1089 | -9/Materials | Entered Mines 1092 | -9/Mines | Met a Derelict bent on vengeance 1314 | -9/Mines | Joined a pair of Derelicts in attacking an 0b10 outpost 1416 | -9/Mines | Deemed a non-threat by the Exiles lab entrance 1416 | -9/Mines | Discovered new exit (range 5) 1422 | -9/Mines | Entered Exiles 1451 | -9/Exiles | Met 8R-AWN 1473 | -9/Exiles | Met EX-HEX 1504 | -9/Exiles | Met EX-BIN 1518 | -9/Exiles | Aligned with FarCom system 1520 | -9/Exiles | Given EX-Vault access code 1547 | -9/Exiles | Opened EX-Vault 1560 | -9/Exiles | Found AWS/Gauss 1596 | -9/Exiles | Warned to stay clear of 0b10 Research branches 1628 | -9/Exiles | Met EX-DEC 1768 | -9/Exiles | Discovered new exit (range 14) 1783 | -9/Exiles | Left Exiles lab with AWS/Gauss 1783 | -9/Exiles | Entered Mines 1865 | -8/Mines | Found a Scrap Suit stashed away for nefarious purposes 1869 | -8/Mines | Found Scrap Suit 2159 | -8/Mines | Discovered new exit (range 6) 2621 | -8/Mines | Entered Materials 2621 | -8/Materials | Evolved 2 slots: Propulsion x1, Utility x1 2826 | -8/Materials | Core integrity fell below 50% 3125 | -8/Materials | Identified exit to Garrison 3125 | -8/Materials | Entered Garrison 3187 | -8/Garrison | Destroyed 7 combat bots 3195 | -8/Garrison | Triggered checkpoint 3241 | -8/Garrison | Garrison Relay disabled 3354 | -8/Garrison | AWS/Gauss suddenly broke down 3429 | -8/Garrison | Core integrity fell below 20% 3562 | -8/Garrison | Destroyed by H-55 Commando with Assault Rifle Last Messages --------------- 03482_ Scrap Suit cannibalized Corrupted Imp. Heat Sink to repair Imp. Heat Sink. 03484_ Scrap Suit cannibalized Heat Sink to repair Imp. Heat Sink. 03503_ Scrap Suit cannibalized Beam Rifle to repair Shock Rifle. 03530_ Acquired 10 matter. 03533_ Acquired Lgt. Armor Plating. 03544_ L-31 Rogue springs to life. 03547_ Extracted 10 matter. 03547_ Slug penetrates Wall. 03552_ Machine disabled. 03555_ Chain reaction triggered in Imp. Ion Engine. 03555_ L-31 Rogue destroyed. 03555_ Shock Rifle destroyed. 03555_ Destroyed Shock Rifle. 03555_ Aluminum Leg destroyed. 03555_ Destroyed Aluminum Leg. 03556_ Scrap Suit secures Katana. 03559_ Slug penetrates Wall. 03559_ Katana destroyed. 03562_ Slug penetrates Earth. Map ----- +----------------------------------------------------+ | ??????????????????????????????????????????? | | ??????????????????????????????????????????? | | ??????????????????????????????????????????? | | ??????????????????????????????????????????? | | ??????????????????????????????????????????? | | ??????????????????????????????????????????? | | ??????????????????????????????????????????? | | ??????????????????????????????????????????? | | ??????????????????????????????????????????? | | ??????????????????????????????????????????? | | ??????????????????????????????????????????? | | ??????????????????????????????????????????? | | ??????????????????????????????????????????? | | ??????????????????????????????????????????? | | ??????????????????????????????????????????? | | ??????????????????????????????????????????? | | ??????????????????????????????????????????? | | ??????????????????????????????????????????? | | ??????????????????????????????????????????? | | ??????????????????????????????????????????? | | ??????????????????????????????????????????? | | ??????????####????????????????????????????? | | ???????""""""""?##????????????????######??? | | ?????"*"" ""d"# #####???????????# #??? | | ?????" " [ h;;;!!!#####???????# #??? | | ???" * * !%@ #???????# #??? | | ???" ;;!!!### #???????### #??? | | ???" = ######?# #?????????# #??? | | ????*m ???????# #?????????# #??? | | ????* " #""#????????#%#?????????#[ #??? | | ?????"d"" " ??????####"#####+#####!=#??? | | ????????"?"###???????#!%% = "%" [%*%%*#### | | ?????????#???????????# ##+#########=#*=[ | | ?????????????????????# #?%#??????# ##!! | | ?????????????????????# #??#?????# #?####### | | ?????????????????????# #????????##????????? | | ???????????????????###%+??????????????????? | | ???????????????????#" #??????????????????? | | ???????????????????#%" #??????????????????? | | ???????????????????#" #??????????????????? | | ???????????????????### #??????????????????? | | ?????????????????????# ###????????????????? | | ?????????????????????# #"#????????????????? | | ?????????????????????# ! #????????????????? | | ?????????????????????# #????????????????# | | ?????????????????????# #????????????????# | | ?????????????????????# #"#????????????????# | | ?????????????????????#"###???????????????? | | ?????????????????????# #?????????????????? | | ?????????????????????# #?????????????????? | +----------------------------------------------------+ Best States ------------- Heat Dissipation 45 Energy Generation 14 Energy Capacity 265 Matter Stores 300 Matter Capacity 300 Sight Range 16 Terrain Scan Density 10 Armor Coverage 300 Evasion (%) 55 Offensive Hacking 10 Item Schematics ----------------- Autogun | -9/Materials | Scanalyzed Robot Schematics ------------------ None Fabricated ------------ Nothing Repaired ---------- Imp. Heat Sink | 95% | -9/Materials Alien Tech Used ----------------- None Achievements -------------- Hehehe Challenges ------------ None Game ------ Seed MicrodissipatorPhaseCoupler Manual? 0 Play Time 00:32:06 Cumulative 34.1 hours Start 2025.05.30 @ 18:22:45 End 2025.05.30 @ 18:54:48 Sessions 1 Manual Loads 0 Difficulty Rogue Special Mode None Game No. 51 Rogue 51 Adventurer 0 Explorer 0 Win Type - Total 0 Types 0/0/0/0/0/0/0/0/0/0 Lore% 30 Gallery% 34 Achievement% 28 Wizard Run 0 Options --------- Layout 0 ASCII 0 Keyboard 0 Movement Mouse Keybinds 0 Fullscreen 1 Font 18/SmallcapsGlow Map View 76x50 Zoom Use 0% Tactical HUD 1 Map Filters NONE Filters NONE Steam 1 RUN: 7fdffa13-8132-469d-84c3-a6f00411103e